[Event "*** Titled Tuesday Blitz"]
[Site "Chess.com"]
[Date "2020.10.20"]
[Round "6"]
[White "sotochess"]
[Black "Guriempire"]
[Result "0-1"]
[WhiteElo "2627"]
[BlackElo "2802"]
[TimeControl "180+1"]
[EndTime "11:09:31 PDT"]
[Termination "Guriempire won by resignation"]

1. e4 {[%clk 0:02:59.6]} 1... c6 {[%clk 0:03:00.2]} 2. d4 {[%clk 0:02:45.5]}
2... d5 {[%clk 0:03:01.1]} 3. f3 {[%clk 0:02:45.3]} 3... Qb6 {[%clk 0:03:00.4]}
4. Nc3 {[%clk 0:02:44.8]} 4... e6 {[%clk 0:02:59.8]} 5. Nge2 {[%clk 0:02:39]}
5... Nf6 {[%clk 0:02:56.8]} 6. e5 {[%clk 0:02:35.4]} 6... Nfd7 {[%clk
0:02:56.2]} 7. f4 {[%clk 0:02:35.7]} 7... c5 {[%clk 0:02:56.5]} 8. Na4 {[%clk
0:02:29.2]} 8... Qa5+ {[%clk 0:02:54.5]} 9. c3 {[%clk 0:02:28.7]} 9... c4 {[%clk
0:02:46.6]} 10. b4 {[%clk 0:02:10.9]} 10... Qc7 {[%clk 0:02:46.1]} 11. Be3
{[%clk 0:02:06.8]} 11... a5 {[%clk 0:02:45]} 12. a3 {[%clk 0:02:05.4]} 12... Be7
{[%clk 0:02:37.9]} 13. g4 {[%clk 0:02:03.4]} 13... h5 {[%clk 0:02:30.1]} 14.
gxh5 {[%clk 0:02:01.6]} 14... Rxh5 {[%clk 0:02:24.6]} 15. Ng3 {[%clk 0:02:01.4]}
15... Rh7 {[%clk 0:02:19.9]} 16. f5 {[%clk 0:02:01.1]} 16... Nf8 {[%clk
0:02:19.3]} 17. Bg2 {[%clk 0:01:54.8]} 17... axb4 {[%clk 0:02:15.6]} 18. axb4
{[%clk 0:01:54.1]} 18... Nc6 {[%clk 0:01:53.6]} 19. O-O {[%clk 0:01:51.5]} 19...
Bh4 {[%clk 0:01:43.5]} 20. Nc5 {[%clk 0:01:41.6]} 20... Rxa1 {[%clk 0:01:41.3]}
21. Qxa1 {[%clk 0:01:41.1]} 21... b6 {[%clk 0:01:41.3]} 22. Na4 {[%clk
0:01:40.6]} 22... Bd7 {[%clk 0:01:27.3]} 23. Nb2 {[%clk 0:01:13]} 23... Na7
{[%clk 0:01:22.3]} 24. Qb1 {[%clk 0:01:10.4]} 24... Rh8 {[%clk 0:01:20.3]} 25.
Nd1 {[%clk 0:01:06.4]} 25... Nb5 {[%clk 0:01:19.1]} 26. Qc1 {[%clk 0:01:01.6]}
26... Bxg3 {[%clk 0:00:53]} 27. hxg3 {[%clk 0:01:01.3]} 27... exf5 {[%clk
0:00:53.5]} 28. Bxd5 {[%clk 0:01:00.6]} 28... Bc6 {[%clk 0:00:54.1]} 29. Bxc4
{[%clk 0:00:24.7]} 29... Ne6 {[%clk 0:00:39.4]} 30. d5 {[%clk 0:00:24]} 30...
Qxe5 {[%clk 0:00:38.5]} 31. Bf4 {[%clk 0:00:19]} 31... Qe4 {[%clk 0:00:35.9]}
32. Ne3 {[%clk 0:00:13.7]} 32... Nxf4 {[%clk 0:00:27]} 33. gxf4 {[%clk
0:00:11.5]} 33... Bd7 {[%clk 0:00:19.7]} 34. Bxb5 {[%clk 0:00:08.4]} 34... Bxb5
{[%clk 0:00:19.2]} 35. c4 {[%clk 0:00:08.6]} 35... Bd7 {[%clk 0:00:16.3]} 36.
Ng2 {[%clk 0:00:08.7]} 36... Kf8 {[%clk 0:00:14.4]} 37. Qe3 {[%clk 0:00:07.5]}
37... Qxc4 {[%clk 0:00:13.7]} 38. Qxb6 {[%clk 0:00:07.7]} 38... Qxd5 {[%clk
0:00:12.2]} 39. Qc5+ {[%clk 0:00:08.1]} 39... Qxc5+ {[%clk 0:00:11.7]} 40. bxc5
{[%clk 0:00:09]} 40... Bc6 {[%clk 0:00:12.5]} 41. Ne3 {[%clk 0:00:09.2]} 41...
Rh1+ {[%clk 0:00:12.1]} 42. Kf2 {[%clk 0:00:09.2]} 42... Rh2+ {[%clk 0:00:12.7]}
43. Kg3 {[%clk 0:00:09.1]} 43... Re2 {[%clk 0:00:13.2]} 44. Nxf5 {[%clk
0:00:09.2]} 44... Rg2+ {[%clk 0:00:13]} 45. Kh3 {[%clk 0:00:09]} 45... Ra2
{[%clk 0:00:10.6]} 46. Rb1 {[%clk 0:00:08.5]} 46... Bd7 {[%clk 0:00:10.5]} 47.
Rb8+ {[%clk 0:00:08.2]} 47... Be8 {[%clk 0:00:11.4]} 48. Nd6 {[%clk 0:00:07.7]}
48... Re2 {[%clk 0:00:12]} 49. Rxe8+ {[%clk 0:00:08.4]} 49... Rxe8 {[%clk
0:00:11.6]} 50. Nxe8 {[%clk 0:00:08.2]} 50... Kxe8 {[%clk 0:00:12.5]} 51. Kg4
{[%clk 0:00:08.8]} 51... Kd7 {[%clk 0:00:12.7]} 52. Kf5 {[%clk 0:00:09.7]} 52...
Kc6 {[%clk 0:00:13.3]} 53. Ke5 {[%clk 0:00:08.2]} 53... Kxc5 {[%clk 0:00:13.9]}
54. f5 {[%clk 0:00:09.1]} 54... Kc6 {[%clk 0:00:14.4]} 55. f6 {[%clk 0:00:09.2]}
55... g6 {[%clk 0:00:14.4]} 56. Kf4 {[%clk 0:00:09.5]} 56... Kd5 {[%clk
0:00:14.6]} 57. Kg5 {[%clk 0:00:10.4]} 57... Ke6 {[%clk 0:00:15.1]} 58. Kh6
{[%clk 0:00:11.3]} 58... Kxf6 {[%clk 0:00:15.9]} 0-1

[Event "*** Titled Tuesday Blitz"]
[Site "Chess.com"]
[Date "2020.10.20"]
[Round "6"]
[White "giantslayer83"]
[Black "Mr_Sinigami"]
[Result "1-0"]
[WhiteElo "2709"]
[BlackElo "2501"]
[TimeControl "180+1"]
[EndTime "11:09:31 PDT"]
[Termination "giantslayer83 won on time"]

1. d4 {[%clk 0:03:00.9]} 1... Nf6 {[%clk 0:02:58.5]} 2. Bg5 {[%clk 0:02:59.5]}
2... c5 {[%clk 0:02:57.2]} 3. Bxf6 {[%clk 0:02:56]} 3... gxf6 {[%clk 0:02:57.3]}
4. d5 {[%clk 0:02:56.5]} 4... Qb6 {[%clk 0:02:56.6]} 5. Qc1 {[%clk 0:02:56.3]}
5... d6 {[%clk 0:02:54.5]} 6. g3 {[%clk 0:02:55.3]} 6... h5 {[%clk 0:02:53.2]}
7. h4 {[%clk 0:02:52.8]} 7... Bf5 {[%clk 0:02:46]} 8. Bg2 {[%clk 0:02:52.2]}
8... Nd7 {[%clk 0:02:42]} 9. Nd2 {[%clk 0:02:50.9]} 9... Bh6 {[%clk 0:02:36]}
10. e3 {[%clk 0:02:50.2]} 10... Ne5 {[%clk 0:02:29.9]} 11. Ne2 {[%clk
0:02:49.8]} 11... Qa6 {[%clk 0:02:24.7]} 12. a4 {[%clk 0:02:48.1]} 12... Bg4
{[%clk 0:02:07.5]} 13. Nc3 {[%clk 0:02:38.9]} 13... Qb6 {[%clk 0:01:42.2]} 14.
a5 {[%clk 0:02:37.2]} 14... Qc7 {[%clk 0:01:38]} 15. b3 {[%clk 0:02:17]} 15...
Qc8 {[%clk 0:01:33.8]} 16. Qa3 {[%clk 0:02:14.5]} 16... Kf8 {[%clk 0:01:29.6]}
17. f4 {[%clk 0:01:54.2]} 17... Nd7 {[%clk 0:01:19.1]} 18. Qa4 {[%clk
0:01:54.5]} 18... f5 {[%clk 0:01:11]} 19. Nd1 {[%clk 0:01:21]} 19... Bg7 {[%clk
0:01:09.1]} 20. Rb1 {[%clk 0:01:20.8]} 20... Bxd1 {[%clk 0:01:05.6]} 21. Rxd1
{[%clk 0:01:21.7]} 21... Nf6 {[%clk 0:01:05.4]} 22. e4 {[%clk 0:01:20.1]} 22...
fxe4 {[%clk 0:00:55.9]} 23. Nxe4 {[%clk 0:01:21]} 23... Ng4 {[%clk 0:00:52]} 24.
Rd3 {[%clk 0:01:19.1]} 24... Rg8 {[%clk 0:00:27.6]} 25. Ng5 {[%clk 0:01:17.3]}
25... Bf6 {[%clk 0:00:22.7]} 26. Qe4 {[%clk 0:01:01.5]} 26... Rg7 {[%clk
0:00:20.4]} 27. c3 {[%clk 0:00:57.3]} 27... b5 {[%clk 0:00:20.2]} 28. O-O {[%clk
0:00:56.5]} 28... c4 {[%clk 0:00:20]} 29. bxc4 {[%clk 0:00:51.3]} 29... bxc4
{[%clk 0:00:20]} 30. Rdf3 {[%clk 0:00:51]} 30... Qc5+ {[%clk 0:00:19.5]} 31. Kh1
{[%clk 0:00:51.4]} 31... Rc8 {[%clk 0:00:19.4]} 32. Bh3 {[%clk 0:00:51]} 32...
Kg8 {[%clk 0:00:19]} 33. Qf5 {[%clk 0:00:45.7]} 33... Rb8 {[%clk 0:00:16.6]} 34.
Bxg4 {[%clk 0:00:40.2]} 34... hxg4 {[%clk 0:00:16.7]} 35. Qxg4 {[%clk
0:00:40.4]} 35... Qxa5 {[%clk 0:00:16.7]} 36. Qf5 {[%clk 0:00:39.8]} 36... Bxc3
{[%clk 0:00:12.3]} 37. h5 {[%clk 0:00:38.3]} 37... Bf6 {[%clk 0:00:11.2]} 38.
Ne4 {[%clk 0:00:35.4]} 38... Qd8 {[%clk 0:00:09.4]} 39. g4 {[%clk 0:00:31.2]}
39... Qc8 {[%clk 0:00:09]} 40. Qxc8+ {[%clk 0:00:26.1]} 40... Rxc8 {[%clk
0:00:08.9]} 41. g5 {[%clk 0:00:27]} 41... Bd4 {[%clk 0:00:08.7]} 42. Rd1 {[%clk
0:00:24.3]} 42... Bb6 {[%clk 0:00:08.5]} 43. h6 {[%clk 0:00:22.9]} 43... Rg6
{[%clk 0:00:06.8]} 44. f5 {[%clk 0:00:22.7]} 44... Rc7 {[%clk 0:00:02.3]} 45.
fxg6 {[%clk 0:00:22.5]} 45... fxg6 {[%clk 0:00:03]} 46. Rdf1 {[%clk 0:00:22.4]}
46... Rc8 {[%clk 0:00:03.1]} 47. Rf7 {[%clk 0:00:21.3]} 47... c3 {[%clk
0:00:03.4]} 48. Nxc3 {[%clk 0:00:16.9]} 48... Bd4 {[%clk 0:00:03.2]} 49. Ne4
{[%clk 0:00:16]} 49... Bf6 {[%clk 0:00:03.2]} 50. R7xf6 {[%clk 0:00:10.2]} 50...
exf6 {[%clk 0:00:02.9]} 51. Nxf6+ {[%clk 0:00:11.1]} 1-0

[Event "*** Titled Tuesday Blitz"]
[Site "Chess.com"]
[Date "2020.10.20"]
[Round "6"]
[White "Chessbard1972"]
[Black "Caterpiller35"]
[Result "0-1"]
[WhiteElo "2296"]
[BlackElo "2434"]
[TimeControl "180+1"]
[EndTime "11:09:36 PDT"]
[Termination "Caterpiller35 won by resignation"]

1. d4 {[%clk 0:03:00.9]} 1... Nf6 {[%clk 0:02:59.7]} 2. c4 {[%clk 0:03:00.3]}
2... e6 {[%clk 0:02:59.9]} 3. Nf3 {[%clk 0:02:59.6]} 3... b6 {[%clk 0:02:58.9]}
4. a3 {[%clk 0:02:58.8]} 4... Ba6 {[%clk 0:02:58.8]} 5. Qc2 {[%clk 0:02:58]}
5... c5 {[%clk 0:02:58.6]} 6. d5 {[%clk 0:02:57.7]} 6... exd5 {[%clk 0:02:58.6]}
7. cxd5 {[%clk 0:02:57.6]} 7... g6 {[%clk 0:02:59.2]} 8. Nc3 {[%clk 0:02:56.9]}
8... Bg7 {[%clk 0:02:59.1]} 9. g3 {[%clk 0:02:56]} 9... O-O {[%clk 0:02:58.4]}
10. Bg2 {[%clk 0:02:56.2]} 10... Re8 {[%clk 0:02:58.7]} 11. O-O {[%clk
0:02:55.9]} 11... d6 {[%clk 0:02:59.1]} 12. Re1 {[%clk 0:02:54.8]} 12... b5
{[%clk 0:02:59]} 13. b4 {[%clk 0:02:52.9]} 13... Nbd7 {[%clk 0:02:58.6]} 14. Bb2
{[%clk 0:02:51.1]} 14... Rc8 {[%clk 0:02:57.9]} 15. Qd2 {[%clk 0:02:44.2]} 15...
Qb6 {[%clk 0:02:56.4]} 16. e4 {[%clk 0:02:37.9]} 16... Ng4 {[%clk 0:02:53.4]}
17. h3 {[%clk 0:02:36.7]} 17... Nge5 {[%clk 0:02:41.7]} 18. Nxe5 {[%clk
0:02:36.2]} 18... Bxe5 {[%clk 0:02:41.7]} 19. Ne2 {[%clk 0:02:29.9]} 19... cxb4
{[%clk 0:02:37.1]} 20. axb4 {[%clk 0:02:26.8]} 20... Rc4 {[%clk 0:02:29.4]} 21.
Bxe5 {[%clk 0:02:24.9]} 21... Nxe5 {[%clk 0:02:30.3]} 22. Rec1 {[%clk
0:02:15.9]} 22... Bc8 {[%clk 0:02:29]} 23. Rxc4 {[%clk 0:02:13.7]} 23... bxc4
{[%clk 0:02:25.3]} 24. Nd4 {[%clk 0:02:06.6]} 24... Bxh3 {[%clk 0:02:17.8]} 25.
Kh2 {[%clk 0:01:52.5]} 25... Bxg2 {[%clk 0:02:09.6]} 26. Kxg2 {[%clk 0:01:52.4]}
26... Nd3 {[%clk 0:02:08.5]} 27. Nc6 {[%clk 0:01:39.6]} 27... a6 {[%clk
0:02:02.6]} 28. f3 {[%clk 0:01:34.5]} 28... Ne5 {[%clk 0:01:42.6]} 29. Nxe5
{[%clk 0:01:27.5]} 29... dxe5 {[%clk 0:01:43.5]} 30. Rh1 {[%clk 0:01:25.4]}
30... Qd4 {[%clk 0:01:26.2]} 31. Qh6 {[%clk 0:01:18.9]} 31... Qb2+ {[%clk
0:01:22.6]} 32. Kh3 {[%clk 0:01:18]} 32... Qxb4 {[%clk 0:01:21.8]} 33. Kg4
{[%clk 0:01:17.1]} 33... Qd6 {[%clk 0:01:08.1]} 34. Qxh7+ {[%clk 0:01:15.4]}
34... Kf8 {[%clk 0:01:08.3]} 35. Qh6+ {[%clk 0:01:10.9]} 35... Ke7 {[%clk
0:01:07.4]} 36. Qe3 {[%clk 0:01:09.9]} 36... Rc8 {[%clk 0:01:02.8]} 37. f4
{[%clk 0:01:04.9]} 37... c3 {[%clk 0:01:00.5]} 38. Rc1 {[%clk 0:01:03.4]} 38...
c2 {[%clk 0:00:50.4]} 39. Kf3 {[%clk 0:00:59.9]} 39... Qb4 {[%clk 0:00:41.3]}
40. Kg4 {[%clk 0:00:49.9]} 40... exf4 {[%clk 0:00:35.2]} 41. Qa7+ {[%clk
0:00:48]} 41... Kf8 {[%clk 0:00:32.8]} 42. Qd7 {[%clk 0:00:38.3]} 42... Rc4
{[%clk 0:00:17]} 43. Qd8+ {[%clk 0:00:37.5]} 43... Kg7 {[%clk 0:00:15.9]} 44.
Rh1 {[%clk 0:00:37.2]} 44... Qf8 {[%clk 0:00:16]} 45. Qb6 {[%clk 0:00:21.3]}
45... c1=Q {[%clk 0:00:12]} 46. Rxc1 {[%clk 0:00:20]} 46... Rxc1 {[%clk
0:00:12.9]} 47. Qd4+ {[%clk 0:00:20.4]} 47... Kg8 {[%clk 0:00:12.6]} 48. gxf4
{[%clk 0:00:20.5]} 48... Qc8+ {[%clk 0:00:12.4]} 49. f5 {[%clk 0:00:20.2]} 49...
Rc4 {[%clk 0:00:12.2]} 50. Qe5 {[%clk 0:00:17.7]} 50... Qxf5+ {[%clk 0:00:12.1]}
51. Qxf5 {[%clk 0:00:16.8]} 51... gxf5+ {[%clk 0:00:13]} 52. Kxf5 {[%clk
0:00:17.4]} 52... a5 {[%clk 0:00:13.4]} 53. d6 {[%clk 0:00:16.9]} 53... Rd4
{[%clk 0:00:13.3]} 54. e5 {[%clk 0:00:14.8]} 54... a4 {[%clk 0:00:12.2]} 55. Kf6
{[%clk 0:00:15]} 55... a3 {[%clk 0:00:12]} 56. Ke7 {[%clk 0:00:14.8]} 56... a2
{[%clk 0:00:11.4]} 57. d7 {[%clk 0:00:14.6]} 57... a1=Q {[%clk 0:00:11.1]} 58.
d8=Q+ {[%clk 0:00:14.2]} 58... Rxd8 {[%clk 0:00:11]} 59. Kxd8 {[%clk 0:00:14]}
59... Qxe5 {[%clk 0:00:11.9]} 60. Kd7 {[%clk 0:00:13.7]} 60... Qe6+ {[%clk
0:00:11.6]} 0-1

[Event "*** Titled Tuesday Blitz"]
[Site "Chess.com"]
[Date "2020.10.20"]
[Round "6"]
[White "Fh2411"]
[Black "googlegoom"]
[Result "1-0"]
[WhiteElo "2516"]
[BlackElo "2364"]
[TimeControl "180+1"]
[EndTime "11:09:38 PDT"]
[Termination "Fh2411 won on time"]

1. d4 {[%clk 0:01:58.6]} 1... d5 {[%clk 0:02:57.7]} 2. Nf3 {[%clk 0:01:59.5]}
2... Nf6 {[%clk 0:02:57.6]} 3. c4 {[%clk 0:01:57.3]} 3... c6 {[%clk 0:02:58]} 4.
cxd5 {[%clk 0:01:57.2]} 4... cxd5 {[%clk 0:02:58.4]} 5. Nc3 {[%clk 0:01:58.1]}
5... Nc6 {[%clk 0:02:58.4]} 6. Bf4 {[%clk 0:01:58.7]} 6... e6 {[%clk 0:02:58.1]}
7. e3 {[%clk 0:01:59.1]} 7... Be7 {[%clk 0:02:58.7]} 8. Rc1 {[%clk 0:01:58.2]}
8... Bd7 {[%clk 0:02:59]} 9. Bd3 {[%clk 0:01:58.8]} 9... Rc8 {[%clk 0:02:58.6]}
10. h3 {[%clk 0:01:57.7]} 10... O-O {[%clk 0:02:58.1]} 11. O-O {[%clk
0:01:57.8]} 11... Na5 {[%clk 0:02:58.6]} 12. Qe2 {[%clk 0:01:50.7]} 12... Nc4
{[%clk 0:02:58.6]} 13. b3 {[%clk 0:01:50.4]} 13... Nd6 {[%clk 0:02:54.7]} 14.
Ne5 {[%clk 0:01:46.6]} 14... Qa5 {[%clk 0:02:51.7]} 15. Nb1 {[%clk 0:01:37.5]}
15... Bb5 {[%clk 0:02:44.8]} 16. Bg5 {[%clk 0:01:27.9]} 16... Bxd3 {[%clk
0:02:42.4]} 17. Nxd3 {[%clk 0:01:28.8]} 17... Nde4 {[%clk 0:02:38.4]} 18. Bh4
{[%clk 0:01:28.9]} 18... h6 {[%clk 0:02:17.4]} 19. f3 {[%clk 0:01:28.2]} 19...
Nd6 {[%clk 0:01:43.1]} 20. Nc5 {[%clk 0:01:26.8]} 20... Rfd8 {[%clk 0:01:35.3]}
21. Bf2 {[%clk 0:01:13.7]} 21... b6 {[%clk 0:01:34.9]} 22. Nd3 {[%clk
0:01:11.4]} 22... Nd7 {[%clk 0:01:30.1]} 23. Qd2 {[%clk 0:01:06.5]} 23... Qa6
{[%clk 0:01:25.5]} 24. Nb4 {[%clk 0:01:04.3]} 24... Qb7 {[%clk 0:01:25.9]} 25.
a4 {[%clk 0:00:53.4]} 25... b5 {[%clk 0:01:21.5]} 26. a5 {[%clk 0:00:52.5]}
26... a6 {[%clk 0:01:17.4]} 27. Nd3 {[%clk 0:00:49.4]} 27... Ne8 {[%clk
0:01:13.7]} 28. Bg3 {[%clk 0:00:46.3]} 28... b4 {[%clk 0:00:58.7]} 29. Rxc8
{[%clk 0:00:41.8]} 29... Rxc8 {[%clk 0:00:58.6]} 30. Rc1 {[%clk 0:00:42.3]}
30... Rc6 {[%clk 0:00:56.5]} 31. Be1 {[%clk 0:00:34.4]} 31... Rxc1 {[%clk
0:00:45.4]} 32. Qxc1 {[%clk 0:00:34.2]} 32... Nb8 {[%clk 0:00:44.4]} 33. Nc5
{[%clk 0:00:29.3]} 33... Bxc5 {[%clk 0:00:41.5]} 34. Qxc5 {[%clk 0:00:28.8]}
34... Nc6 {[%clk 0:00:41.9]} 35. Nd2 {[%clk 0:00:22]} 35... Nf6 {[%clk
0:00:33.9]} 36. Nf1 {[%clk 0:00:17.7]} 36... Nd7 {[%clk 0:00:30.6]} 37. Qd6
{[%clk 0:00:17.9]} 37... Nf6 {[%clk 0:00:30.9]} 38. Ng3 {[%clk 0:00:17.3]} 38...
Nxa5 {[%clk 0:00:29.8]} 39. Bxb4 {[%clk 0:00:15.1]} 39... Nxb3 {[%clk
0:00:26.5]} 40. Qf8+ {[%clk 0:00:15.2]} 40... Kh7 {[%clk 0:00:26.8]} 41. Be7
{[%clk 0:00:15.8]} 41... Nd2 {[%clk 0:00:18.8]} 42. Bxf6 {[%clk 0:00:14.1]}
42... gxf6 {[%clk 0:00:18.5]} 43. Nh5 {[%clk 0:00:13.9]} 43... Qb1+ {[%clk
0:00:12]} 44. Kf2 {[%clk 0:00:14.4]} 44... Qf1+ {[%clk 0:00:11.9]} 45. Kg3
{[%clk 0:00:14.2]} 45... Qe1+ {[%clk 0:00:11.7]} 46. Kg4 {[%clk 0:00:08.1]}
46... f5+ {[%clk 0:00:10.2]} 47. Kf4 {[%clk 0:00:08.6]} 47... Qh4+ {[%clk
0:00:10.1]} 48. g4 {[%clk 0:00:09.2]} 48... Qg5+ {[%clk 0:00:08.2]} 49. Kg3
{[%clk 0:00:08.8]} 49... Nf1+ {[%clk 0:00:05.4]} 50. Kf2 {[%clk 0:00:09]} 50...
Qxe3+ {[%clk 0:00:03.2]} 51. Kxf1 {[%clk 0:00:09.3]} 51... Qc1+ {[%clk
0:00:03.1]} 52. Ke2 {[%clk 0:00:09.3]} 52... Qc2+ {[%clk 0:00:03.2]} 53. Ke3
{[%clk 0:00:09.2]} 53... Qc3+ {[%clk 0:00:03.4]} 54. Kf2 {[%clk 0:00:08]} 54...
Qd2+ {[%clk 0:00:04]} 55. Kg3 {[%clk 0:00:07.9]} 55... Qe1+ {[%clk 0:00:03.2]}
56. Kf4 {[%clk 0:00:08.5]} 56... Qd2+ {[%clk 0:00:03.7]} 57. Ke5 {[%clk
0:00:08.8]} 57... Qh2+ {[%clk 0:00:04.2]} 58. Kf6 {[%clk 0:00:08.7]} 1-0

[Event "*** Titled Tuesday Blitz"]
[Site "Chess.com"]
[Date "2020.10.20"]
[Round "6"]
[White "AleksanderHnydiuk"]
[Black "davigator"]
[Result "1/2-1/2"]
[WhiteElo "2530"]
[BlackElo "2352"]
[TimeControl "180+1"]
[EndTime "11:09:43 PDT"]
[Termination "Game drawn by repetition"]

1. Nf3 {[%clk 0:03:00.9]} 1... d5 {[%clk 0:02:54.6]} 2. d4 {[%clk 0:03:00.3]}
2... c6 {[%clk 0:02:52.9]} 3. c4 {[%clk 0:03:00.3]} 3... Nf6 {[%clk 0:02:51.8]}
4. e3 {[%clk 0:02:59.9]} 4... g6 {[%clk 0:02:51.1]} 5. Nc3 {[%clk 0:02:58.9]}
5... Bg7 {[%clk 0:02:51]} 6. Be2 {[%clk 0:02:58.7]} 6... O-O {[%clk 0:02:50.5]}
7. O-O {[%clk 0:02:59.2]} 7... a6 {[%clk 0:02:49]} 8. a4 {[%clk 0:02:52.9]} 8...
a5 {[%clk 0:02:47.2]} 9. b3 {[%clk 0:02:49.3]} 9... Na6 {[%clk 0:02:46.9]} 10.
Ba3 {[%clk 0:02:49.2]} 10... Re8 {[%clk 0:02:46]} 11. cxd5 {[%clk 0:02:33.8]}
11... Nxd5 {[%clk 0:02:45.8]} 12. Rc1 {[%clk 0:02:30.1]} 12... Ndb4 {[%clk
0:02:44.3]} 13. Ne4 {[%clk 0:02:22.6]} 13... Bf5 {[%clk 0:02:37]} 14. Ng3 {[%clk
0:02:15.4]} 14... Be6 {[%clk 0:02:35.6]} 15. Ng5 {[%clk 0:02:12.1]} 15... Bd7
{[%clk 0:02:33]} 16. Bc4 {[%clk 0:02:08]} 16... e6 {[%clk 0:02:33]} 17. N5e4
{[%clk 0:02:05.5]} 17... Bc8 {[%clk 0:02:31.2]} 18. f4 {[%clk 0:01:47]} 18... h6
{[%clk 0:02:22.3]} 19. Qd2 {[%clk 0:01:45.6]} 19... f5 {[%clk 0:02:15.3]} 20.
Nf2 {[%clk 0:01:37.5]} 20... Kh7 {[%clk 0:02:13.8]} 21. Nd3 {[%clk 0:01:35.3]}
21... Nxd3 {[%clk 0:02:11]} 22. Qxd3 {[%clk 0:01:33]} 22... Nc7 {[%clk
0:02:11.4]} 23. Rcd1 {[%clk 0:01:18.2]} 23... Nd5 {[%clk 0:02:07.6]} 24. e4
{[%clk 0:01:17.3]} 24... Nb4 {[%clk 0:01:46.7]} 25. Bxb4 {[%clk 0:01:11.3]}
25... axb4 {[%clk 0:01:46]} 26. Rfe1 {[%clk 0:01:07.3]} 26... Bd7 {[%clk
0:01:44.3]} 27. exf5 {[%clk 0:01:02.3]} 27... exf5 {[%clk 0:01:44.1]} 28. Rxe8
{[%clk 0:00:41.4]} 28... Qxe8 {[%clk 0:01:41.2]} 29. Qd2 {[%clk 0:00:39.4]}
29... Qf8 {[%clk 0:01:35.2]} 30. Ne2 {[%clk 0:00:37.9]} 30... Qd6 {[%clk
0:01:34.2]} 31. Nc1 {[%clk 0:00:36.1]} 31... b5 {[%clk 0:01:27.7]} 32. axb5
{[%clk 0:00:33.8]} 32... cxb5 {[%clk 0:01:27.7]} 33. Bf1 {[%clk 0:00:33.4]}
33... Ra1 {[%clk 0:01:25.5]} 34. Qb2 {[%clk 0:00:20.4]} 34... Ra3 {[%clk
0:01:13.2]} 35. Ne2 {[%clk 0:00:19.9]} 35... Qd5 {[%clk 0:01:09]} 36. Rd3 {[%clk
0:00:18.9]} 36... Be6 {[%clk 0:01:05.7]} 37. Nc1 {[%clk 0:00:16.5]} 37... Qa8
{[%clk 0:01:02.9]} 38. g3 {[%clk 0:00:14.5]} 38... Bd5 {[%clk 0:01:01]} 39. Bg2
{[%clk 0:00:13]} 39... Bxg2 {[%clk 0:01:00.1]} 40. Qxg2 {[%clk 0:00:13.9]} 40...
Qa7 {[%clk 0:00:48.1]} 41. Qd2 {[%clk 0:00:11.3]} 41... Ra1 {[%clk 0:00:47.4]}
42. Kg2 {[%clk 0:00:10.6]} 42... Qa3 {[%clk 0:00:41.4]} 43. d5 {[%clk
0:00:10.3]} 43... Rxc1 {[%clk 0:00:36.2]} 44. d6 {[%clk 0:00:10.4]} 44... Rc8
{[%clk 0:00:36.1]} 45. d7 {[%clk 0:00:10.4]} 45... Rd8 {[%clk 0:00:36.6]} 46.
Qe3 {[%clk 0:00:09.5]} 46... Qb2+ {[%clk 0:00:35.7]} 47. Kh3 {[%clk 0:00:08.4]}
47... Qf6 {[%clk 0:00:35.1]} 48. Qa7 {[%clk 0:00:06.7]} 48... g5 {[%clk
0:00:33.8]} 49. Qc7 {[%clk 0:00:06.6]} 49... g4+ {[%clk 0:00:33.7]} 50. Kg2
{[%clk 0:00:06.2]} 50... Qb2+ {[%clk 0:00:33.9]} 51. Kg1 {[%clk 0:00:05.9]}
51... Bd4+ {[%clk 0:00:32.7]} 52. Kf1 {[%clk 0:00:05.5]} 52... Qb1+ {[%clk
0:00:31.5]} 53. Ke2 {[%clk 0:00:05.4]} 53... Qb2+ {[%clk 0:00:29]} 54. Rd2
{[%clk 0:00:04.5]} 54... Qc3 {[%clk 0:00:24.5]} 55. Qxd8 {[%clk 0:00:05]} 55...
Qe3+ {[%clk 0:00:24.7]} 56. Kd1 {[%clk 0:00:05.5]} 56... Qxb3+ {[%clk
0:00:23.4]} 57. Ke2 {[%clk 0:00:05.8]} 57... Qe3+ {[%clk 0:00:23]} 58. Kd1
{[%clk 0:00:06]} 58... Qf3+ {[%clk 0:00:20]} 59. Re2 {[%clk 0:00:05.4]} 59...
Qd3+ {[%clk 0:00:19.1]} 60. Rd2 {[%clk 0:00:05.7]} 60... Qb1+ {[%clk 0:00:16.5]}
61. Ke2 {[%clk 0:00:05.8]} 61... Qe4+ {[%clk 0:00:17]} 62. Kd1 {[%clk 0:00:06]}
62... Qb1+ {[%clk 0:00:11.1]} 63. Ke2 {[%clk 0:00:06.3]} 63... Qe4+ {[%clk
0:00:11.9]} 64. Kd1 {[%clk 0:00:06.6]} 64... Qb1+ {[%clk 0:00:11.7]} 1/2-1/2